bitfinex/quotes_SOLUSD_20250529
["timestamp","ask_amount","ask_price","bid_price","bid_amount"]
[1748530047387,26.0,170.34,170.28,21.23043033]
[1748530047590,21.23043033,170.33,170.29,21.23043033]
[1748530047804,26.0,170.34,170.29,21.23043033]
[1748530047988,22.20215301,170.35,170.31,21.23043033]
[1748530048173,22.20215301,170.35,170.25,31.87345284]
[1748530048374,22.20215301,170.35,170.31,21.23043033]
[1748530048580,45.57333333,170.37,170.29,1.6486]
[1748530048804,55.56376366,170.37,170.33,21.23043033]
[1748530049002,55.56376366,170.37,170.32,21.23043033]
[1748530049380,34.33333333,170.37,170.33,21.23043033]
[1748530049582,55.56376366,170.37,170.29,1.6486]
[1748530049797,34.33333333,170.37,170.33,21.23043033]
[1748530050708,21.23043033,170.35,170.3,21.23043033]
[1748530050916,21.23043033,170.35,170.29,1.6486]
[1748530050917,34.33333333,170.37,170.33,21.23043033]
[1748530051092,55.56376366,170.37,170.32,21.23043033]
[1748530051499,55.56376366,170.37,170.29,1.6486]
[1748530051706,43.43258334,170.36,170.31,21.23043033]
[1748530052317,21.23043033,170.35,170.29,1.6486]
[1748530052499,22.20215301,170.36,170.32,21.23043033]
[1748530053311,22.20215301,170.36,170.29,1.6486]
[1748530053508,22.20215301,170.36,170.34,21.23043033]
[1748530053696,22.20215301,170.36,170.32,21.23043033]
[1748530054098,43.43258334,170.36,170.31,21.23043033]
[1748530054418,21.23043033,170.35,170.29,1.6486]
[1748530054619,21.23043033,170.35,170.3,21.23043033]
[1748530054791,43.43258334,170.36,170.31,21.23043033]
[1748530055627,43.43258334,170.36,170.29,1.6486]
[1748530055809,21.23043033,170.33,170.29,1.6486]
[1748530056005,21.23043033,170.31,170.26,26.0]
[1748530056207,21.23043033,170.31,170.27,21.23043033]
[1748530056408,22.20215301,170.36,170.27,21.23043033]
[1748530056614,21.23043033,170.32,170.28,21.23043033]
[1748530057724,21.23043033,170.32,170.26,26.0]
[1748530057906,21.23043033,170.32,170.25,1.6537]
[1748530058223,21.23043033,170.32,170.27,21.23043033]
[1748530059319,22.20215301,170.35,170.28,21.23043033]
[1748530059524,22.20215301,170.35,170.31,21.23043033]
[1748530059525,43.43258334,170.35,170.31,21.23043033]
[1748530059834,8.33333333,170.37,170.34,21.23043033]
[1748530060124,8.33333333,170.37,170.36,21.23043033]
[1748530060313,8.33333333,170.37,170.32,1.559]
[1748530060709,8.33333333,170.37,170.35,21.23043033]
[1748530061607,8.33333333,170.37,170.36,21.23043033]
[1748530062012,8.33333333,170.37,170.32,7.43029146]
[1748530062209,8.33333333,170.37,170.36,21.23043033]
[1748530064628,8.33333333,170.37,170.36,27.10035284]
[1748530065305,8.33333333,170.37,170.36,21.23043033]
[1748530066128,5.62165863,170.48,170.39,26.0]
[1748530066427,5.62165863,170.48,170.44,21.23043033]
[1748530066933,5.62165863,170.48,170.41,5.86819218]
[1748530067119,26.85208896,170.48,170.41,5.86819218]
[1748530067315,5.62165863,170.48,170.44,21.23043033]
[1748530067702,5.62165863,170.48,170.45,21.23043033]
[1748530067907,5.62165863,170.48,170.46,21.23043033]
[1748530069322,5.62165863,170.48,170.45,21.23043033]
[1748530069920,5.62165863,170.48,170.46,21.23043033]
[1748530070308,5.62165863,170.48,170.45,21.23043033]
[1748530070519,5.62165863,170.48,170.46,21.23043033]
[1748530071423,5.62165863,170.48,170.45,2.859386]
[1748530071621,5.62165863,170.48,170.45,21.23043033]
[1748530071821,5.62165863,170.48,170.41,26.0]
[1748530072219,5.62165863,170.48,170.45,21.23043033]
[1748530072418,5.62165863,170.48,170.46,21.23043033]
[1748530072637,5.62165863,170.48,170.47,21.23043033]
[1748530073048,5.62165863,170.48,170.46,21.23043033]
[1748530074447,5.62165863,170.48,170.42,2.96508262]
[1748530074743,5.62165863,170.48,170.46,21.23043033]
[1748530076028,5.62165863,170.48,170.47,21.23043033]
[1748530076227,5.62165863,170.48,170.4,31.86825182]
[1748530076228,5.62165863,170.48,170.42,1.5773]
[1748530076438,5.62165863,170.48,170.45,21.23043033]
[1748530076621,5.62165863,170.48,170.46,21.23043033]
[1748530077838,5.62165863,170.48,170.42,1.5773]
[1748530078018,5.62165863,170.48,170.42,4.4967571]
[1748530078220,5.62165863,170.48,170.42,1.5773]
[1748530078537,5.62165863,170.48,170.44,21.23043033]
[1748530079338,5.62165863,170.48,170.45,21.23043033]
[1748530080015,5.62165863,170.48,170.44,21.23043033]
[1748530080416,5.62165863,170.48,170.42,2.91476533]
[1748530080733,21.23043033,170.43,170.37,21.23043033]
[1748530080941,21.23043033,170.39,170.37,2.93881068]
[1748530081136,22.20215301,170.42,170.31,6.0117]
[1748530081137,21.23043033,170.38,170.31,6.0117]
[1748530081336,22.20215301,170.42,170.33,21.23043033]
[1748530081533,22.20215301,170.41,170.35,21.23043033]
[1748530081725,22.20215301,170.41,170.31,6.0117]
[1748530081726,21.23043033,170.39,170.31,8.92072083]
[1748530081925,21.23043033,170.39,170.34,21.23043033]
[1748530082115,21.23043033,170.39,170.35,21.23043033]
[1748530082322,40.62,170.4,170.31,8.92072083]
[1748530082622,21.23043033,170.38,170.33,21.23043033]
[1748530083226,21.23043033,170.37,170.32,21.23043033]
[1748530083826,21.23043033,170.39,170.34,21.23043033]
[1748530084022,21.23043033,170.36,170.31,2.96065852]
[1748530084345,21.23043033,170.36,170.3,1.6615]
[1748530084346,22.20215301,170.38,170.3,21.23043033]
[1748530084522,40.58,170.37,170.31,21.23043033]
[1748530084726,40.58,170.37,170.32,21.23043033]
[1748530085430,61.81043033,170.37,170.32,21.23043033]
[1748530086346,22.20215301,170.38,170.29,5.872215]
[1748530086543,22.20215301,170.38,170.35,21.23043033]
[1748530086848,22.20215301,170.38,170.34,21.23043033]
[1748530087243,21.23043033,170.37,170.32,21.23043033]
[1748530087559,21.23043033,170.35,170.3,21.23043033]
[1748530087918,21.23043033,170.34,170.27,6.372]
[1748530088141,21.23043033,170.34,170.29,21.23043033]
[1748530088652,22.20215301,170.37,170.31,21.23043033]
[1748530088827,22.20215301,170.37,170.33,21.23043033]
[1748530089023,43.43258334,170.37,170.32,21.23043033]
[1748530089254,21.23043033,170.36,170.27,6.372]
[1748530089538,21.23043033,170.36,170.31,21.23043033]
[1748530089969,21.23043033,170.34,170.29,21.23043033]
[1748530091445,22.20215301,170.37,170.3,21.23043033]
[1748530091640,21.23043033,170.35,170.3,21.23043033]
[1748530092348,22.20215301,170.37,170.26,27.5141]
[1748530092668,22.20215301,170.36,170.33,21.23043033]
[1748530093659,43.43258334,170.36,170.26,33.3873818]
[1748530093865,22.20215301,170.36,170.32,21.23043033]
[1748530094170,22.20215301,170.36,170.33,21.23043033]
[1748530094667,22.20215301,170.36,170.35,21.23043033]
[1748530095344,43.43258334,170.42,170.35,21.23043033]
[1748530095545,22.20215301,170.41,170.37,21.23043033]
[1748530095941,43.43258334,170.41,170.36,21.23043033]
[1748530096146,22.20215301,170.41,170.37,21.23043033]
[1748530096355,22.20215301,170.41,170.31,31.87135404]
[1748530096556,43.43258334,170.41,170.36,21.23043033]
[1748530096756,21.23043033,170.4,170.36,21.23043033]
[1748530097158,22.20215301,170.41,170.36,21.23043033]
[1748530097363,43.43258334,170.41,170.36,21.23043033]
[1748530098168,22.20215301,170.41,170.36,21.23043033]
[1748530098376,43.43258334,170.41,170.36,21.23043033]
[1748530098771,22.20215301,170.41,170.37,21.23043033]
[1748530099451,22.20215301,170.41,170.38,21.23043033]
[1748530099853,22.20215301,170.41,170.39,21.23043033]
[1748530100280,43.43258334,170.41,170.34,1.6046]
[1748530100464,22.20215301,170.41,170.34,1.6046]
[1748530100775,22.20215301,170.41,170.39,21.23043033]
[1748530101379,22.20215301,170.41,170.36,26.0]
[1748530101558,22.20215301,170.41,170.39,21.23043033]
[1748530101968,22.20215301,170.41,170.4,21.23043033]
[1748530103383,22.20215301,170.41,170.36,26.0]
[1748530103590,22.20215301,170.41,170.4,21.23043033]
[1748530104150,22.20215301,170.41,170.36,26.0]
[1748530104349,22.20215301,170.41,170.4,21.23043033]
[1748530109068,22.20215301,170.47,170.4,21.23043033]
[1748530109388,22.20215301,170.47,170.44,21.23043033]
[1748530109790,22.20215301,170.47,170.43,21.23043033]
[1748530110173,21.23043033,170.46,170.37,21.23043033]
[1748530110375,21.23043033,170.45,170.36,6.604]
[1748530110591,22.20215301,170.47,170.4,21.23043033]
[1748530110771,21.23043033,170.45,170.4,21.23043033]
[1748530111494,21.23043033,170.46,170.41,21.23043033]
[1748530111686,22.20215301,170.45,170.41,21.23043033]
[1748530111985,22.20215301,170.45,170.36,32.604]
[1748530112191,22.20215301,170.44,170.4,21.23043033]
[1748530112768,22.20215301,170.44,170.36,32.604]
[1748530112970,22.20215301,170.44,170.4,21.23043033]
[1748530113384,22.20215301,170.43,170.39,21.23043033]
[1748530113586,21.23043033,170.42,170.34,1.6046]
[1748530113777,21.23043033,170.41,170.37,21.23043033]
[1748530114289,21.23043033,170.42,170.34,1.6046]
[1748530114503,21.23043033,170.42,170.37,21.23043033]
[1748530114820,21.23043033,170.42,170.34,1.6046]
[1748530114973,21.23043033,170.42,170.38,21.23043033]
[1748530115168,43.43258334,170.41,170.37,21.23043033]
[1748530115397,22.20215301,170.4,170.36,21.23043033]
[1748530115803,12.08,170.43,170.31,26.0]
[1748530115804,22.20215301,170.39,170.31,26.0]
[1748530116117,22.20215301,170.39,170.35,21.23043033]
[1748530116577,22.20215301,170.39,170.31,26.0]
[1748530116768,22.20215301,170.39,170.35,21.23043033]
[1748530116981,22.20215301,170.39,170.36,21.23043033]
[1748530117521,22.20215301,170.39,170.38,21.23043033]
[1748530118002,22.20215301,170.44,170.38,47.23043033]
[1748530118187,22.20215301,170.44,170.41,21.23043033]
[1748530118691,22.20215301,170.44,170.38,26.0]
[1748530118892,22.20215301,170.44,170.42,21.23043033]
[1748530120077,22.20215301,170.44,170.38,26.0]
[1748530120291,22.20215301,170.44,170.4,21.23043033]
[1748530120492,22.20215301,170.44,170.38,26.0]
[1748530120981,22.20215301,170.44,170.42,21.23043033]
[1748530122083,22.20215301,170.44,170.41,21.23043033]
[1748530122277,22.20215301,170.44,170.38,26.0]
[1748530122477,22.20215301,170.44,170.41,21.23043033]
[1748530122890,22.20215301,170.44,170.38,26.0]
[1748530123203,22.20215301,170.44,170.41,21.23043033]
[1748530124779,22.20215301,170.44,170.43,21.23043033]
[1748530125181,22.20215301,170.44,170.38,26.0]
[1748530125401,22.20215301,170.44,170.43,21.23043033]
[1748530126276,22.20215301,170.44,170.4,26.0]
[1748530126681,22.20215301,170.44,170.43,21.23043033]
[1748530126902,22.20215301,170.44,170.4,26.0]
[1748530127088,22.20215301,170.44,170.43,21.23043033]
[1748530128010,22.20215301,170.44,170.38,31.86913945]
[1748530128185,27.82381164,170.48,170.38,31.86913945]
[1748530128380,27.82381164,170.48,170.45,21.23043033]
[1748530129198,27.82381164,170.48,170.38,31.8691852]
[1748530129517,5.62165863,170.48,170.47,21.23043033]
[1748530130610,5.62165863,170.48,170.44,1.6298]
[1748530130791,5.62165863,170.48,170.46,21.23043033]
[1748530131111,5.62165863,170.48,170.47,21.23043033]
[1748530132189,5.62165863,170.48,170.44,1.6298]
[1748530132507,5.62165863,170.48,170.46,21.23043033]
[1748530132710,5.62165863,170.48,170.42,6.0981]
[1748530132894,5.62165863,170.48,170.47,21.23043033]
[1748530133695,5.62165863,170.48,170.42,6.0981]
[1748530133898,5.62165863,170.48,170.47,21.23043033]
[1748530134303,5.62165863,170.48,170.42,6.0981]
[1748530134707,5.62165863,170.48,170.47,21.23043033]
[1748530135720,5.62165863,170.48,170.47,2.97892291]
[1748530136013,5.62165863,170.48,170.46,21.23043033]
[1748530136218,5.62165863,170.48,170.45,26.0]
[1748530136597,5.62165863,170.48,170.47,21.23043033]
[1748530137109,5.62165863,170.48,170.42,8.9601299]
[1748530137312,5.62165863,170.48,170.47,21.23043033]
[1748530137618,5.62165863,170.48,170.43,26.0]
[1748530137619,5.62165863,170.48,170.46,21.23043033]
[1748530137816,5.62165863,170.48,170.43,26.0]
[1748530137995,5.62165863,170.48,170.47,21.23043033]
[1748530139114,5.62165863,170.48,170.45,26.0]
[1748530139297,5.62165863,170.48,170.47,21.23043033]
[1748530139700,5.62165863,170.48,170.45,26.0]
[1748530139915,5.62165863,170.48,170.47,21.23043033]
[1748530140304,5.62165863,170.48,170.45,26.0]
[1748530140696,5.62165863,170.48,170.47,21.23043033]
[1748530140895,5.62165863,170.48,170.45,26.0]
[1748530141095,5.62165863,170.48,170.47,21.23043033]
[1748530141995,5.62165863,170.48,170.45,26.0]
[1748530142196,5.62165863,170.48,170.47,21.23043033]
[1748530142519,21.23043033,170.6,170.5,26.0]
[1748530142722,21.23043033,170.59,170.5,26.0]
[1748530142896,40.96,170.6,170.5,26.0]
[1748530143220,21.23043033,170.58,170.54,21.23043033]
[1748530143401,11.94,170.59,170.56,21.23043033]
[1748530143719,41.06,170.61,170.56,21.23043033]
[1748530143916,7.9933,170.65,170.57,21.23043033]
[1748530144123,21.23043033,170.62,170.51,26.0]
[1748530144324,21.23043033,170.61,170.51,26.0]
[1748530144499,21.23043033,170.59,170.51,26.0]
[1748530144707,21.23043033,170.57,170.52,21.23043033]
[1748530144903,41.06,170.61,170.53,21.23043033]
[1748530145105,12.4,170.64,170.49,44.4167475]
[1748530145308,21.23043033,170.58,170.53,21.23043033]
[1748530145525,41.06,170.63,170.49,44.4167475]
[1748530145823,21.23043033,170.61,170.56,21.23043033]
[1748530146018,21.23043033,170.6,170.55,21.23043033]
[1748530146222,12.4,170.64,170.55,21.23043033]
[1748530146404,41.04,170.63,170.49,44.4167475]
[1748530146602,41.02,170.62,170.49,44.4167475]
[1748530146798,21.23043033,170.6,170.55,21.23043033]
[1748530147003,21.23043033,170.6,170.49,50.28214917]
[1748530147004,41.0,170.59,170.49,44.4167475]
[1748530147217,41.0,170.59,170.55,21.23043033]
[1748530147604,62.23043033,170.59,170.49,44.4167475]
[1748530147924,21.23043033,170.57,170.49,44.4167475]
[1748530148105,33.63043033,170.57,170.52,21.23043033]
[1748530148301,12.4,170.57,170.53,21.23043033]
[1748530148616,12.4,170.57,170.49,44.4167475]
[1748530148921,12.4,170.57,170.53,21.23043033]
[1748530149317,33.63043033,170.57,170.52,21.23043033]
[1748530149704,12.4,170.57,170.53,21.23043033]
[1748530150021,21.23043033,170.55,170.49,18.4167475]
[1748530150322,12.4,170.57,170.49,18.4167475]
[1748530150522,21.23043033,170.53,170.49,18.4167475]
[1748530150715,12.4,170.57,170.49,18.4167475]
[1748530150921,21.23043033,170.53,170.48,21.23043033]
[1748530151110,40.96,170.52,170.49,21.23043033]
[1748530151417,40.96,170.52,170.5,21.23043033]
[1748530151618,62.21043033,170.55,170.46,47.23043033]
[1748530151937,21.23043033,170.53,170.48,21.23043033]
[1748530152103,40.98,170.55,170.49,21.23043033]
[1748530152504,21.23043033,170.53,170.44,26.0]
[1748530152702,21.23043033,170.53,170.48,21.23043033]
[1748530152903,21.23043033,170.52,170.47,21.23043033]
[1748530153345,21.23043033,170.5,170.43,19.01535254]
[1748530153507,21.23043033,170.5,170.45,21.23043033]
[1748530153835,33.63043033,170.5,170.43,19.01535254]
[1748530154145,12.4,170.5,170.46,21.23043033]
[1748530154444,12.4,170.5,170.43,19.01535254]
[1748530154600,12.4,170.5,170.46,21.23043033]
[1748530154800,33.63043033,170.5,170.43,19.01535254]
[1748530155030,33.63043033,170.5,170.46,21.23043033]
[1748530155298,12.4,170.5,170.48,21.23043033]
[1748530155505,40.98,170.55,170.48,21.23043033]
[1748530155805,40.98,170.55,170.43,19.01535254]
[1748530155806,12.4,170.56,170.51,21.23043033]
[1748530156125,33.63043033,170.56,170.51,21.23043033]
[1748530156421,12.4,170.56,170.5,21.23043033]
[1748530156610,33.63043033,170.56,170.46,21.23043033]
[1748530156798,22.20215301,170.55,170.51,21.23043033]
[1748530157000,22.20215301,170.55,170.52,21.23043033]
[1748530157743,22.20215301,170.55,170.46,47.23043033]
[1748530157909,22.20215301,170.55,170.47,6.2135]
[1748530158108,12.4,170.62,170.54,21.23043033]
[1748530158109,21.23043033,170.59,170.54,21.23043033]
[1748530158602,63.14215301,170.61,170.5,1.5817]
[1748530158603,21.23043033,170.61,170.5,27.5817]
[1748530158804,21.23043033,170.59,170.54,21.23043033]
[1748530159231,21.23043033,170.57,170.5,1.5817]
[1748530159410,21.23043033,170.57,170.51,21.23043033]
[1748530160201,21.23043033,170.55,170.5,21.23043033]
[1748530161918,12.4,170.57,170.53,21.23043033]
[1748530162129,33.63043033,170.57,170.52,21.23043033]
[1748530162329,21.23043033,170.56,170.51,21.23043033]
[1748530162528,12.4,170.57,170.52,21.23043033]
[1748530162719,33.63043033,170.57,170.49,26.0]
[1748530162916,12.4,170.57,170.52,21.23043033]
[1748530163231,21.23043033,170.56,170.51,21.23043033]
[1748530164110,21.23043033,170.56,170.49,26.0]
[1748530164529,21.23043033,170.56,170.46,14.006]
[1748530164530,21.23043033,170.55,170.5,21.23043033]
[1748530164735,21.23043033,170.54,170.46,14.006]
[1748530164934,21.23043033,170.52,170.46,1.606]
[1748530165131,21.23043033,170.52,170.47,21.23043033]
[1748530165437,22.20215301,170.53,170.47,21.23043033]
[1748530165626,21.23043033,170.52,170.48,21.23043033]
[1748530165826,21.23043033,170.52,170.46,1.606]
[1748530166025,22.20215301,170.53,170.46,21.23043033]
[1748530166026,21.23043033,170.51,170.46,21.23043033]
[1748530166243,21.23043033,170.51,170.44,6.3809]
[1748530166541,21.23043033,170.51,170.46,21.23043033]
[1748530167051,21.23043033,170.47,170.43,17.42155254]
[1748530167752,12.4,170.5,170.43,17.42155254]
[1748530167949,21.23043033,170.46,170.43,17.42155254]
[1748530168235,19.78293062,170.5,170.43,17.42155254]
[1748530168460,21.23043033,170.44,170.43,17.42155254]
[1748530169144,19.78293062,170.5,170.43,17.42155254]
[1748530169758,13.9177,170.5,170.43,17.42155254]
[1748530169932,21.23043033,170.48,170.43,38.65198287]
[1748530171332,54.7177,170.5,170.44,21.23043033]
[1748530171529,21.23043033,170.48,170.44,21.23043033]
[1748530172139,21.23043033,170.48,170.43,38.65198287]
[1748530172622,21.23043033,170.45,170.43,17.42155254]
[1748530172956,21.23043033,170.47,170.43,38.65198287]
[1748530173650,54.6777,170.5,170.43,17.42155254]
[1748530173846,21.23043033,170.49,170.44,21.23043033]
[1748530174140,21.23043033,170.49,170.43,17.42155254]
[1748530174341,21.23043033,170.49,170.44,21.23043033]
[1748530174927,21.23043033,170.48,170.44,21.23043033]
[1748530175126,12.24,170.5,170.45,21.23043033]
[1748530175334,21.23043033,170.49,170.45,21.23043033]
[1748530175729,21.23043033,170.49,170.43,17.42155254]
[1748530175930,21.23043033,170.49,170.44,21.23043033]
[1748530176856,21.23043033,170.49,170.45,21.23043033]
[1748530178055,22.20215301,170.48,170.44,21.23043033]
[1748530178223,22.20215301,170.48,170.43,17.42155254]
[1748530178433,22.20215301,170.48,170.44,21.23043033]
[1748530178642,22.20215301,170.48,170.43,17.42155254]
[1748530178842,22.20215301,170.48,170.44,21.23043033]
[1748530179034,21.23043033,170.47,170.43,38.65198287]
[1748530179357,21.23043033,170.47,170.43,17.42155254]
[1748530179540,21.23043033,170.47,170.43,38.65198287]
[1748530179855,21.23043033,170.47,170.43,17.42155254]
[1748530180164,21.23043033,170.47,170.43,38.65198287]
[1748530180656,22.20215301,170.48,170.43,38.65198287]
[1748530181030,22.20215301,170.48,170.45,21.23043033]
[1748530181845,22.20215301,170.48,170.43,17.42155254]
[1748530182048,22.20215301,170.48,170.45,21.23043033]
[1748530182654,22.20215301,170.48,170.43,17.42155254]
[1748530182838,22.20215301,170.48,170.44,21.23043033]
[1748530184042,22.20215301,170.47,170.44,21.23043033]
[1748530184438,22.20215301,170.47,170.43,17.42155254]
[1748530184634,22.20215301,170.47,170.44,21.23043033]
[1748530185644,22.20215301,170.47,170.46,21.23043033]
[1748530186056,21.23043033,170.55,170.46,42.46086066]
[1748530186257,12.24,170.56,170.51,21.23043033]
[1748530186464,33.47043033,170.56,170.51,21.23043033]
[1748530186967,73.87043033,170.56,170.51,21.23043033]
[1748530187170,10.54150177,170.58,170.52,21.23043033]
[1748530187343,6.0224,170.61,170.54,21.23043033]
[1748530187545,39.8514,170.63,170.55,21.23043033]
[1748530187775,21.23043033,170.61,170.56,21.23043033]
[1748530188357,54.2114,170.63,170.56,21.23043033]
[1748530188675,21.23043033,170.61,170.56,21.23043033]
[1748530188869,13.8514,170.63,170.57,21.23043033]
[1748530189049,21.23043033,170.61,170.57,21.23043033]
[1748530189252,21.23043033,170.6,170.54,1.6174]
[1748530189480,13.8514,170.63,170.54,1.6174]
[1748530189481,21.23043033,170.61,170.56,21.23043033]
[1748530189767,13.8514,170.63,170.54,1.6174]
[1748530189954,21.23043033,170.61,170.56,21.23043033]
[1748530190149,21.23043033,170.61,170.54,1.6174]
[1748530190358,21.23043033,170.6,170.55,21.23043033]
[1748530191021,21.23043033,170.6,170.51,40.34]
[1748530191155,21.23043033,170.59,170.54,21.23043033]
[1748530191477,19.71215387,170.63,170.55,21.23043033]
[1748530191478,13.8514,170.63,170.55,21.23043033]
[1748530191788,13.8514,170.63,170.57,21.23043033]
[1748530192284,21.23043033,170.62,170.57,21.23043033]
[1748530192845,21.23043033,170.61,170.57,21.23043033]
[1748530193249,13.8514,170.63,170.57,21.23043033]
[1748530193586,21.23043033,170.61,170.57,21.23043033]
[1748530194170,13.8514,170.63,170.57,21.23043033]
[1748530194376,21.23043033,170.61,170.57,21.23043033]
[1748530195051,21.23043033,170.61,170.56,21.23043033]
[1748530195876,21.23043033,170.59,170.5,1.6263]
[1748530196065,21.23043033,170.59,170.51,26.0]
[1748530196248,21.23043033,170.59,170.54,21.23043033]
[1748530196450,21.23043033,170.59,170.55,21.23043033]
[1748530196870,22.20215301,170.6,170.55,21.23043033]
[1748530197188,43.43258334,170.6,170.55,21.23043033]
[1748530197478,22.20215301,170.6,170.51,26.0]
[1748530197691,43.43258334,170.6,170.55,21.23043033]
[1748530198253,21.23043033,170.59,170.51,26.0]
[1748530198463,21.23043033,170.59,170.55,21.23043033]
[1748530198668,22.20215301,170.6,170.55,21.23043033]
[1748530198983,22.20215301,170.59,170.55,21.23043033]
[1748530199667,43.43258334,170.59,170.55,21.23043033]
[1748530199877,43.43258334,170.59,170.51,26.0]
[1748530200075,43.43258334,170.59,170.54,21.23043033]
[1748530200375,43.43258334,170.59,170.5,1.6263]
[1748530200376,22.20215301,170.59,170.5,1.6263]
[1748530200545,43.43258334,170.58,170.53,21.23043033]
[1748530200946,43.43258334,170.58,170.5,1.6263]
[1748530200947,22.20215301,170.58,170.57,21.23043033]
[1748530201545,22.20215301,170.58,170.5,7.49118902]
[1748530201745,22.20215301,170.58,170.56,21.23043033]
[1748530201973,43.43258334,170.58,170.52,26.0]
[1748530202143,22.20215301,170.58,170.54,21.23043033]
[1748530202355,22.20215301,170.58,170.56,21.23043033]
[1748530203785,22.20215301,170.58,170.55,21.23043033]
[1748530204454,22.20215301,170.57,170.5,1.6263]
[1748530204970,22.20215301,170.57,170.56,21.23043033]
[1748530205169,22.20215301,170.57,170.55,21.23043033]
[1748530205590,22.20215301,170.57,170.56,21.23043033]
[1748530207167,22.20215301,170.57,170.5,1.6263]
[1748530207490,22.20215301,170.57,170.53,21.23043033]
[1748530208394,22.20215301,170.57,170.5,1.6263]
[1748530208576,43.43258334,170.57,170.53,21.23043033]
[1748530208890,43.43258334,170.57,170.52,21.23043033]
[1748530209087,43.43258334,170.57,170.5,1.6263]
[1748530209296,43.43258334,170.57,170.53,21.23043033]
[1748530210195,22.20215301,170.57,170.55,21.23043033]
[1748530210363,22.20215301,170.57,170.5,1.6263]
[1748530210868,22.20215301,170.57,170.53,21.23043033]
[1748530211582,43.43258334,170.57,170.5,1.6263]
[1748530211789,21.23043033,170.56,170.51,21.23043033]
[1748530211977,43.43258334,170.55,170.5,21.23043033]
[1748530212694,21.23043033,170.53,170.48,38.64687331]
[1748530212899,21.23043033,170.53,170.48,17.41644298]
[1748530213106,40.16,170.56,170.48,17.41644298]
[1748530213107,21.23043033,170.51,170.48,17.41644298]
[1748530213398,40.16,170.56,170.48,17.41644298]
[1748530213567,21.23043033,170.51,170.48,17.41644298]
[1748530213883,6.5889,170.58,170.48,17.41644298]
[1748530213884,6.5889,170.58,170.5,21.23043033]
[1748530214192,21.23043033,170.55,170.51,21.23043033]
[1748530214362,21.23043033,170.55,170.48,17.41644298]
[1748530214363,59.01043033,170.57,170.52,21.23043033]
[1748530214565,99.15043033,170.57,170.48,17.41644298]
[1748530214865,21.23043033,170.56,170.51,21.23043033]
[1748530215087,1.5708,170.6,170.54,21.23043033]
[1748530215299,21.23043033,170.59,170.55,21.23043033]
[1748530215470,26.0,170.58,170.55,21.23043033]
[1748530215989,11.78,170.61,170.57,21.23043033]
[1748530216292,11.78,170.61,170.58,21.23043033]
[1748530216293,26.0,170.59,170.58,21.23043033]
[1748530216483,26.0,170.59,170.57,21.23043033]
[1748530216788,43.43258334,170.63,170.49,14.58006212]
[1748530216982,69.43258334,170.63,170.58,21.23043033]
[1748530217173,21.23043033,170.62,170.58,21.23043033]
[1748530217566,21.23043033,170.62,170.57,21.23043033]
[1748530217774,21.23043033,170.62,170.49,14.58006212]
[1748530217961,21.23043033,170.59,170.49,8.1284]
[1748530218166,21.23043033,170.59,170.55,21.23043033]
[1748530218395,21.23043033,170.6,170.55,21.23043033]
[1748530218773,40.22,170.62,170.49,8.1284]
[1748530219096,61.45043033,170.62,170.57,21.23043033]
[1748530219389,21.23043033,170.62,170.57,21.23043033]
[1748530219794,48.20215301,170.63,170.58,21.23043033]
[1748530219959,48.20215301,170.63,170.5,26.0]
[1748530219960,21.23043033,170.6,170.5,26.0]
[1748530220388,21.23043033,170.61,170.56,21.23043033]
[1748530220569,21.23043033,170.61,170.57,21.23043033]
[1748530220769,48.20215301,170.63,170.57,21.23043033]
[1748530221297,21.23043033,170.61,170.57,21.23043033]
[1748530221465,21.23043033,170.6,170.5,26.0]
[1748530221671,48.20215301,170.63,170.55,21.23043033]
[1748530221875,22.20215301,170.59,170.56,21.23043033]
[1748530222190,22.20215301,170.58,170.56,21.23043033]
[1748530222370,22.20215301,170.58,170.55,21.23043033]
[1748530222770,22.20215301,170.58,170.49,8.1284]
[1748530223003,72.16192869,170.6,170.49,1.5]
[1748530223308,21.23043033,170.56,170.52,21.23043033]
[1748530223491,21.23043033,170.56,170.51,21.23043033]
[1748530223995,21.23043033,170.56,170.52,21.23043033]
[1748530224199,21.23043033,170.57,170.52,21.23043033]
[1748530224374,21.23043033,170.58,170.49,1.5]
[1748530224691,22.20215301,170.59,170.54,21.23043033]
[1748530224896,22.20215301,170.59,170.56,21.23043033]
[1748530225466,22.20215301,170.59,170.49,33.36532301]
[1748530225663,22.20215301,170.59,170.56,21.23043033]
[1748530225901,22.20215301,170.59,170.55,21.23043033]
[1748530226074,43.43258334,170.59,170.54,21.23043033]
[1748530226273,22.20215301,170.59,170.54,21.23043033]
[1748530226598,43.43258334,170.59,170.54,21.23043033]
[1748530227687,21.23043033,170.58,170.53,21.23043033]
[1748530227892,22.20215301,170.59,170.54,21.23043033]
[1748530228074,43.43258334,170.59,170.54,21.23043033]